fUSD/lending_fUSD_20250214
["ID","MTS","AMOUNT","RATE_DAILY","PERIOD"]
[353090189,1739548255377,-1843.17914721,0.00012095,2]
[353090190,1739548255388,-500.0,0.00013698,2]
[353090191,1739548255399,-212.20631353,0.00013698,2]
[353090192,1739548255413,-287.79368647,0.00013698,2]
[353090193,1739548255424,-500.0,0.0001378,2]
[353090194,1739548255435,-500.0,0.0001378,2]
[353090195,1739548255447,-500.0,0.00013863,2]
[353090196,1739548255458,-500.0,0.00013863,2]
[353090197,1739548255469,-500.0,0.00013863,2]
[353090198,1739548255480,-264.97276473,0.00013945,2]
[353090199,1739548255492,-979.35,0.00013945,2]
[353090200,1739548255503,-2170.9,0.00013945,2]
[353090201,1739548255514,-500.0,0.00013945,2]
[353090202,1739548255525,-1517.59,0.00013945,2]
[353090203,1739548255536,-500.0,0.00013945,2]
[353090204,1739548255548,-500.0,0.00013945,2]
[353090205,1739548255563,-954.96,0.00013945,2]
[353090206,1739548255575,-4366.6,0.00013945,2]
[353090207,1739548255586,-500.0,0.00013945,2]
[353090208,1739548255598,-999.3,0.00013945,2]
[353090209,1739548255609,-717.74,0.00013945,2]
[353090210,1739548255620,-536.41,0.00013945,2]
[353090211,1739548255631,-500.0,0.00013945,2]
[353090212,1739548255642,-1092.58,0.00013945,2]
[353090213,1739548255654,-631.13,0.00013945,2]
[353090214,1739548255665,-500.0,0.00013945,2]
[353090215,1739548255677,-500.0,0.00013945,2]
[353090216,1739548255688,-1072.74,0.00013945,2]
[353090217,1739548255701,-1218.97,0.00013945,2]
[353090218,1739548255713,-500.0,0.00013945,2]
[353090219,1739548255725,-906.86,0.00013945,2]
[353090220,1739548255736,-1431.71,0.00013945,2]
[353090221,1739548255747,-500.0,0.00013945,2]
[353090222,1739548255759,-1500.48,0.00013945,2]
[353090223,1739548255770,-917.61,0.00013945,2]
[353090224,1739548255783,-1343.63,0.00013945,2]
[353090225,1739548255794,-500.0,0.00013945,2]
[353090226,1739548255809,-500.0,0.00013945,2]
[353090227,1739548255820,-759.39,0.00013945,2]
[353090228,1739548255832,-1249.61,0.00013945,2]
[353090229,1739548255844,-998.24,0.00013945,2]
[353090230,1739548255856,-1533.71,0.00013945,2]
[353090231,1739548255867,-500.0,0.00013945,2]
[353090232,1739548255880,-1333.06,0.00013945,2]
[353090233,1739548255892,-500.0,0.00013945,2]
[353090234,1739548255903,-500.0,0.00013945,2]
[353090235,1739548255915,-1456.62,0.00013945,2]
[353090236,1739548255925,-500.0,0.00013945,2]
[353090237,1739548255938,-2749.06,0.00013945,2]
[353090238,1739548255949,-500.0,0.00013945,2]
[353090239,1739548255961,-1132.11,0.00013945,2]
[353090240,1739548255973,-8729.54,0.00013945,2]
[353090241,1739548255984,-500.0,0.00013945,2]
[353090242,1739548255995,-756.38,0.00013945,2]
[353090243,1739548256008,-1241.63,0.00013945,2]
[353090244,1739548256020,-741.08,0.00013945,2]
[353090245,1739548256031,-835.42,0.00013945,2]
[353090246,1739548256042,-1544.84,0.00013945,2]
[353090247,1739548256054,-866.9,0.00013945,2]
[353090248,1739548256065,-500.0,0.00013945,2]
[353090249,1739548256076,-193.5561516,0.00013945,2]
[353090250,1739548256088,-500.0,0.00013945,2]
[353090251,1739548256099,-500.0,0.00013945,2]
[353090252,1739548256111,-560.92,0.00013945,2]
[353090253,1739548256122,-1579.95,0.00013945,2]
[353090254,1739548256133,-936.28,0.00013945,2]
[353090255,1739548256145,-500.0,0.00013945,2]
[353090256,1739548256156,-1044.67,0.00013945,2]
[353090257,1739548256168,-501.9824398,0.00013945,2]
[353090258,1739548256180,-2242.19,0.00013945,2]
[353090259,1739548256191,-817.13,0.00013945,2]
[353090260,1739548256202,-2304.98,0.00013945,2]
[353090261,1739548256213,-500.0,0.00013945,2]
[353090262,1739548256224,-1622.0,0.00013945,2]
[353090263,1739548256236,-192.28455133,0.00013945,2]
[353090264,1739548256250,-1596.05,0.00013945,2]
[353090265,1739548256262,-510.82,0.00013945,2]
[353090266,1739548256273,-500.0,0.00013945,2]
[353090267,1739548256284,-1710.8,0.00013945,2]
[353090268,1739548256296,-2143.64,0.00013945,2]
[353090269,1739548256308,-2601.08,0.00013945,2]
[353090270,1739548256319,-500.0,0.00013945,2]
[353090271,1739548256331,-500.0,0.00013945,2]
[353090272,1739548256341,-1492.38,0.00013945,2]
[353090273,1739548256352,-540.27,0.00013945,2]
[353090274,1739548256363,-916.79,0.00013945,2]
[353090275,1739548256375,-607.33,0.00013945,2]
[353090276,1739548256385,-1897.27,0.00013945,2]
[353090277,1739548256396,-718.45608604,0.00013945,2]
[353090278,1739548256419,-1173.38391396,0.00013945,2]
[353090279,1739548256430,-673.18,0.00013945,2]
[353090280,1739548256441,-1009.69,0.00013945,2]
[353090281,1739548256452,-4821.35,0.00013945,2]
[353090282,1739548256463,-532.89,0.00013945,2]
[353090283,1739548256474,-500.0,0.00013945,2]
[353090284,1739548256485,-972.17410047,0.00013945,2]
[353090285,1739548256498,-512.94589953,0.00013945,2]
[353090286,1739548256509,-194.79834049,0.00013945,2]
[353090287,1739548256522,-1641.45165951,0.00013945,2]
[353090288,1739548256533,-500.0,0.00013945,2]
[353090289,1739548256544,-1461.42,0.00013945,2]
[353090290,1739548256556,-147.32611317,0.00013945,2]
[353090291,1739548603946,6333.22,0.00015,10]
[353090319,1739549432040,-820.20713963,8.836e-05,2]
[353090320,1739549432054,-2744.08019265,8.836e-05,2]
[353090321,1739549432069,-1854.82758644,8.836e-05,2]
[353090322,1739549432106,-2313.80848128,8.836e-05,2]
[353090323,1739549432119,-200.0,8.853e-05,2]
[353090324,1739549432131,-775.0832,8.973e-05,2]
[353090325,1739549432143,-5000.0,8.973e-05,2]
[353090326,1739549432155,-500.0,8.973e-05,3]
[353090327,1739549432166,-733.3535217,9.7e-05,2]
[353090328,1739549432178,-1060.79,9.712e-05,2]
[353090329,1739549432189,-200.0,9.719e-05,2]
[353090330,1739549432201,-200.0,9.719e-05,2]
[353090331,1739549432212,-150.0,9.87e-05,2]
[353090332,1739549432223,-5244.0,0.000111,5]
[353090333,1739549432236,-1500.0,0.00011375,2]
[353090334,1739549432248,-999.99,0.00011375,2]
[353090335,1739549432260,-7478.37549634,0.00011375,2]
[353090336,1739549432300,-2521.61450366,0.00011375,2]
[353090337,1739549432314,-531.91,0.00011396,2]
[353090338,1739549432326,-23900.0,0.00011402,2]
[353090339,1739549432339,-200.0,0.00011423,2]
[353090340,1739549432351,-1359.62,0.00011423,2]
[353090341,1739549432363,-150.0,0.00011504,2]
[353090342,1739549432374,-366.04,0.00011505,2]
[353090343,1739549432386,-1878.09,0.00011505,2]
[353090344,1739549432397,-150.99,0.00011505,2]
[353090345,1739549432409,-150.99,0.00011505,2]
[353090346,1739549432421,-697.48,0.00011505,2]
[353090347,1739549432432,-299.99,0.00011505,2]
[353090348,1739549432443,-9999.99,0.00011505,2]
[353090349,1739549432454,-266.49,0.00011505,2]
[353090350,1739549432465,-480.82,0.00011505,2]
[353090351,1739549432475,-835.42,0.00011523,2]
[353090352,1739549432487,-1626.67,0.00011523,2]
[353090354,1739549432498,-1905.74,0.00011538,2]
[353090356,1739549432510,-500.0,0.00011542,2]
[353090357,1739549432521,-4794.54,0.00011561,2]
[353090359,1739549432533,-250.0,0.00011561,2]
[353090362,1739549432545,-736.77,0.00011594,2]
[353090364,1739549432556,-3218.72,0.00011614,2]
[353090366,1739549432568,-1000.0,0.00011624,2]
[353090368,1739549432579,-165.3,0.0001163,2]
[353090370,1739549432592,-927.16,0.00011636,2]
[353090373,1739549432606,-250.0,0.00011675,2]
[353090375,1739549432618,-150.0,0.00011688,2]
[353090377,1739549432630,-150.0,0.00011688,2]
[353090379,1739549432643,-150.0,0.00011688,2]
[353090382,1739549432656,-150.50178747,0.00011688,2]
[353090384,1739549432669,-150.0,0.00011688,2]
[353090386,1739549432681,-150.0,0.00011818,2]
[353090388,1739549432696,-150.0,0.00011832,2]
[353090390,1739549432708,-150.0,0.00011947,2]
[353090392,1739549432719,-1060.79,0.00011976,2]
[353090394,1739549432733,-150.0,0.00011976,2]
[353090396,1739549432745,-150.0,0.00012077,2]
[353090399,1739549432757,-150.0,0.00012121,2]
[353090401,1739549432769,-150.0,0.00012207,2]
[353090403,1739549432780,-150.0,0.00012265,2]
[353090405,1739549432792,-1036.52364069,0.00012321,2]
[353090407,1739549432803,-150.0,0.00012337,2]
[353090409,1739549432815,-150.0,0.00012337,2]
[353090412,1739549432828,-150.0,0.00012409,2]
[353090414,1739549432839,-178.06,0.00012418,2]
[353090416,1739549432851,-178.06,0.00012421,2]
[353090418,1739549432863,-178.06,0.00012424,2]
[353090420,1739549432874,-178.06,0.00012428,2]
[353090422,1739549432886,-178.06,0.00012431,2]
[353090425,1739549432898,-178.06,0.00012434,2]
[353090427,1739549432910,-178.06,0.00012437,2]
[353090429,1739549432921,-178.06,0.00012441,2]
[353090431,1739549432933,-178.06,0.00012444,2]
[353090433,1739549432945,-178.06,0.00012447,2]
[353090436,1739549432957,-178.06,0.0001245,2]
[353090438,1739549432968,-178.06,0.00012454,2]
[353090440,1739549432980,-178.06,0.00012457,2]
[353090442,1739549432993,-178.06,0.0001246,2]
[353090444,1739549433005,-178.06,0.00012463,2]
[353090447,1739549433017,-178.06,0.00012467,2]
[353090449,1739549433029,-150.0,0.00012467,2]
[353090451,1739549433041,-178.06,0.0001247,2]
[353090453,1739549433054,-178.06,0.00012473,2]
[353090455,1739549433068,-178.06,0.00012476,2]
[353090457,1739549433080,-178.06,0.0001248,2]
[353090459,1739549433091,-150.0,0.00012553,2]
[353090461,1739549433103,-150.0,0.00012559,2]
[353090464,1739549433115,-255.0,0.00012562,2]
[353090466,1739549433127,-150.0,0.00012575,2]
[353090468,1739549433140,-150.0,0.00012597,2]
[353090470,1739549433151,-150.0,0.00012698,2]
[353090472,1739549433163,-150.0,0.00012727,2]
[353090475,1739549433175,-150.0,0.00012745,2]
[353090477,1739549433187,-150.0,0.00012799,2]
[353090479,1739549433200,-1036.52364066,0.00012807,2]
[353090481,1739549433213,-150.0,0.00012842,2]
[353090484,1739549433225,-150.0,0.00012844,2]
[353090486,1739549433238,-150.0,0.00012851,2]
[353090488,1739549433251,-150.0,0.00012856,2]
[353090490,1739549433264,-159.41,0.00012879,2]
[353090492,1739549433276,-4174.09588658,0.000129,2]
[353090495,1739549433288,-921.58957365,0.000129,2]
[353090497,1739549433300,-642.25718688,0.000129,2]
[353090499,1739549433312,-228.502644,0.000129,2]
[353090501,1739549433324,-4639.99481477,0.000129,2]
[353090503,1739549433336,-694.29217295,0.000129,2]
[353090505,1739549433347,-1903.65435841,0.000129,2]
[353090508,1739549433359,-681.88738634,0.000129,2]
[353090510,1739549433371,-24089.82558247,0.000129,2]
[353090512,1739549433384,-4174.09588655,0.00012905,2]
[353090514,1739549433396,-921.5895736,0.00012905,2]
[353090516,1739549433408,-4174.09588655,0.00012909,2]
[353090519,1739549433427,-921.5895736,0.00012909,2]
[353090521,1739549433439,-4174.09588655,0.00012914,2]
[353090523,1739549433451,-921.5895736,0.00012914,2]
[353090525,1739549433465,-4174.09588655,0.00012919,2]
[353090527,1739549433477,-921.5895736,0.00012919,2]
[353090529,1739549433489,-51.29019174,0.00012921,2]
[353090533,1739549433514,-255.30980826,0.00012921,2]
[353090535,1739549433525,-1718.35019174,0.00012923,2]
[353090538,1739549433539,-2455.74569481,0.00012923,2]
[353090540,1739549433551,-921.5895736,0.00012923,2]
[353090542,1739549433563,-2414.66473159,0.00012928,2]
[353090545,1739549433578,-1759.43115496,0.00012928,2]
[353090546,1739549433590,-921.5895736,0.00012928,2]
[353090548,1739549433602,-1235.58372055,0.00012933,2]
[353090553,1739549438083,-150.0,0.00012557,2]
[353090554,1739549438095,-150.0,0.00012635,2]
[353090555,1739549438106,-150.0,0.0001279,2]
[353090556,1739549438118,-2938.512166,0.00012933,2]
[353090557,1739549438128,-816.08013439,0.00012933,2]
[353090558,1739549438140,-105.50943921,0.00012933,2]
[353090559,1739549438150,-2452.58865213,0.00012937,2]
[353090560,1739549438162,-1721.50723442,0.00012937,2]
[353090561,1739549438172,-921.5895736,0.00012937,2]
[353090562,1739549438182,-316.79660679,0.00012942,2]
[353090563,1739549438191,-4174.09588655,0.00012942,2]
[353090564,1739549438201,-921.5895736,0.00012942,2]
[353090565,1739549438211,-244.58460754,0.00012952,2]
[353090566,1739549438220,-150.0,0.00012962,2]
[353090567,1739549438229,-150.0,0.00012962,2]
[353090568,1739549438241,-281.55794804,0.00012986,2]
[353090569,1739549438250,-150.0,0.00012986,2]
[353090570,1739549438260,-150.0,0.00012986,2]
[353090571,1739549438269,-150.0,0.00012991,2]
[353090572,1739549438280,-2242.1,0.00012999,2]
[353090573,1739549438289,-300.0,0.00012999,2]
[353090574,1739549438300,-300.0,0.00012999,2]
[353090575,1739549438310,-300.0,0.00012999,2]
[353090576,1739549438321,-300.0,0.00012999,2]
[353090577,1739549438330,-666.0,0.00012999,2]
[353090578,1739549438339,-249.61148572,0.00013,2]
[353090590,1739549440026,-150.0,0.00012517,2]
[353090591,1739549440037,-150.0,0.00012686,2]
[353090592,1739549440047,-150.0,0.00012742,2]
[353090593,1739549440057,-4743.7942219,0.00013,2]
[353090594,1739549440364,-150.0,0.0001262,2]
[353090595,1739549440374,-150.0,0.00012952,2]
[353090596,1739549440384,-214.1820985,0.00013,2]
[353090597,1739549440426,-91405.76596736,0.00013,2]
[353090598,1739549440436,-695.53411285,0.00013,2]
[353090599,1739549440446,-864548.59309248,0.00013,3]
[353090600,1739549440456,-3862973.07963944,0.00013,5]
[353090601,1739549440493,-150.0,0.00012734,2]
[353090602,1739549440503,-2593.526536,0.00013,5]
[353090827,1739549442964,-963.75469085,0.00013,5]
[353090852,1739549443083,-1619.0442814,0.00013,5]
[353090960,1739549446312,-527635.54282293,0.00013,5]
[353090961,1739549446324,-2005.62153505,0.00013,5]
[353090962,1739549446337,-2503.99135087,0.00013,5]
[353090963,1739549446349,-719.08649417,0.00013,5]
[353090964,1739549446368,-6153.24135999,0.00013,5]
[353090965,1739549446380,-4827.86045042,0.00013,5]
[353090966,1739549446402,-48900.19674362,0.00013,5]
[353090967,1739549446421,-1494.35,0.00013,5]
[353090968,1739549446446,-7964.9662998,0.00013,5]
[353090971,1739549463453,403.33101785,0.00020836,60]
[353090972,1739549463735,403.33101785,0.00020836,60]
[353090973,1739549464019,403.33101785,0.00020836,60]
[353090974,1739549464312,403.33101785,0.00020836,60]
[353090975,1739549766477,3000.0,0.00015,30]
[353090976,1739549774198,3000.0,0.00015,30]
[353090977,1739549781790,3000.0,0.00015,30]
[353090978,1739549788973,3000.0,0.00015,30]
[353090979,1739549796070,3000.0,0.00015,30]
[353090980,1739549824811,2643.04,0.00015,30]
[353090990,1739550294146,-5787.961,8.836e-05,2]
[353090991,1739550294170,-200.0,8.84e-05,2]
[353090992,1739550294195,-669.8442,8.851e-05,2]
[353090993,1739550294220,-200.0,8.958e-05,2]
[353090994,1739550294247,-293.1368,8.973e-05,2]
[353090995,1739550294270,-3446.81175735,8.973e-05,2]
[353090996,1739550345908,-1049.56,9.631e-05,2]
[353090997,1739550345933,-200.0,9.719e-05,2]
[353090998,1739550345958,-8920.44,9.98e-05,2]
[353091001,1739550419445,157.34658999,0.00013698,7]
[353091006,1739550491717,149515.52044567,8.8e-05,2]
[353091013,1739550544845,163.0,8.8e-05,3]
[353091015,1739550605171,155.0,8.8e-05,3]
[353091027,1739550632161,-200.0,9.3e-05,3]
[353091028,1739550632172,-500.0,9.4e-05,3]
[353091029,1739550632182,-800.0,9.5e-05,3]
[353091030,1739550632193,-1100.0,9.6e-05,3]
[353091031,1739550632204,-819.48999997,9.7e-05,3]
[353091032,1739550632216,-580.51000003,9.7e-05,3]
[353091033,1739550632226,-200.0,9.8e-05,3]
[353091034,1739550632236,-200.0,9.9e-05,3]
[353091035,1739550632246,-155.0,9.922e-05,3]
[353091036,1739550632256,-165.99278961,9.973e-05,2]
[353091037,1739550632268,-334.00721039,9.973e-05,2]
[353091038,1739550632278,-150.0,9.979e-05,2]
[353091039,1739550632288,-241.6698041,9.98e-05,2]
[353091040,1739550632356,-302.83770475,9.98e-05,2]
[353091041,1739550632369,-13595.56114635,9.98e-05,2]
[353091042,1739550632381,-356.15532581,9.98e-05,2]
[353091043,1739550632451,-312.69458048,9.98e-05,2]
[353091044,1739550632463,-9920.78703065,9.98e-05,2]
[353091045,1739550632491,-942.76373123,9.98e-05,2]
[353091047,1739550632507,-979.02,9.98e-05,2]
[353091051,1739550632540,-2700.19296935,9.98e-05,2]
[353091054,1739550632552,-11987.6,9.98e-05,2]
[353091056,1739550632565,-6960.0,9.98e-05,2]
[353091585,1739550638125,-1211.45955299,9.98e-05,2]
[353091589,1739550638154,-418.64,9.98e-05,2]
[353091591,1739550638166,-69362.59671205,9.98e-05,2]
[353091594,1739550638176,-200.0,9.99e-05,2]
[353091596,1739550638187,-639.93,9.99e-05,2]
[353091598,1739550638196,-440.59,9.99e-05,2]
[353091600,1739550638206,-9999.99,9.99e-05,2]
[353091602,1739550638216,-150.99,9.99e-05,2]
[353091604,1739550638226,-999.99,9.99e-05,2]
[353091606,1739550638236,-150.99,9.99e-05,2]
[353091608,1739550638247,-299.99,9.99e-05,2]
[353091610,1739550638256,-500.0,9.999e-05,2]
[353091612,1739550638266,-500.0,9.999e-05,2]
[353091614,1739550638277,-638.19566988,9.999e-05,2]
[353091616,1739550638287,-11841142.53681597,0.0001,2]
[353091618,1739550638300,-191967.16472932,0.0001,2]
[353091620,1739550638312,-27201.73918289,0.0001,2]
[353091623,1739550638328,-837.40192961,0.0001,2]
[353091625,1739550638341,-1072.87776473,0.0001,2]
[353091627,1739550638353,-708.55772326,0.0001,2]
[353091803,1739550640240,-1417.3985,0.0001,2]
[353091811,1739550640311,-52600.68441378,0.0001,2]
[353091814,1739550640325,-251699.999,0.0001,2]
[353091816,1739550640337,-405.555575,0.0001,2]
[353091819,1739550640360,-1983.1999998,0.0001,2]
[353091834,1739550640486,-49004.0,0.0001,2]
[353091863,1739550640767,-2009.91990681,0.0001,2]
[353091865,1739550640781,-47650.70191419,0.0001,2]
[353091868,1739550640799,-315.01819183,0.0001,2]
[353091871,1739550640811,-403.26653249,0.0001,2]
[353091873,1739550640827,-5506.77505769,0.0001,2]
[353091875,1739550640838,-46945.77370655,0.0001,2]
[353091878,1739550640851,-1027.43750262,0.0001,2]
[353091882,1739550640863,-1363.68834929,0.0001,2]
[353091884,1739550640875,-1216.9044166,0.0001,2]
[353091886,1739550640887,-341.37498772,0.0001,2]
[353091888,1739550640901,-2282.75105925,0.0001,2]
[353091891,1739550640913,-707.39,0.0001,2]
[353091893,1739550640925,-331.13460171,0.0001,2]
[353091895,1739550640936,-797.49998,0.0001,2]
[353092117,1739550643206,-1500.50457247,0.0001,2]
[353092123,1739550643258,-119113.12533917,0.0001,2]
[353092130,1739550643314,-4301.586,0.0001,2]
[353092142,1739550643425,-8502.8615102,0.0001,2]
[353092148,1739550643476,-236942.17362435,0.0001,2]
[353092402,1739550646140,-1589.99999987,0.0001,2]
[353092411,1739550646226,-435.15,0.0001,2]
[353092420,1739550646304,-1016.60000025,0.0001,2]
[353092422,1739550646317,-1454.51556309,0.0001,2]
[353092425,1739550646330,-744.6166125,0.0001,2]
[353092426,1739550646342,-3018.70844911,0.0001,2]
[353092430,1739550646366,-4600.9855386,0.0001,2]
[353092432,1739550646378,-967.1442304,0.0001,2]
[353092489,1739550797724,828.4201,8.699e-05,2]
[353092490,1739550823551,-225.3695,8.851e-05,2]
[353092491,1739550823577,-3824.6305,8.973e-05,2]
[353092492,1739550837986,-1026.714,8.836e-05,2]
[353092493,1739550874706,-49.4419,8.973e-05,2]
[353092494,1739550874731,-154.5581,8.973e-05,3]
[353092495,1739550895752,-0.4419,8.973e-05,3]
[353092496,1739550895779,-200.0,0.0001,3]
[353092498,1739551039567,1089.01,8.775e-05,2]
[353092501,1739551463312,12229.91948374,9.8e-05,7]
[353092502,1739551701909,-155.0,0.0001,3]
[353092503,1739551745600,-3613.041,9.8e-05,2]
[353092504,1739551745626,-192.949,9.8e-05,2]
[353092505,1739551745652,-196.27547794,9.8e-05,2]
[353092506,1739551745678,-200.0,9.886e-05,2]
[353092507,1739551745705,-150.0,9.945e-05,2]
[353092508,1739551745731,-511.77687127,9.945e-05,2]
[353092509,1739551745758,-200.0,9.947e-05,2]
[353092510,1739551745783,-152.49030666,9.973e-05,2]
[353092511,1739551745807,-500.0,9.973e-05,2]
[353092512,1739551745832,-500.0,9.973e-05,2]
[353092513,1739551745857,-1432.45,9.999e-05,2]
[353092514,1739551745881,-150.0,9.999e-05,2]
[353092515,1739551745907,-52201.01734413,0.0001,2]
[353092525,1739551832520,-500.0,9.973e-05,2]
[353092526,1739551832531,-200.0,9.986e-05,2]
[353092527,1739551832541,-29.35629871,0.0001,2]
[353092528,1739551832554,-137312.48305222,0.0001,2]
[353092529,1739551832567,-46196.48581101,0.0001,2]
[353092530,1739551832583,-294.29499367,0.0001,2]
[353092531,1739551832595,-22045.99999999,0.0001,2]
[353092532,1739551832616,-330.77280473,0.0001,2]
[353092533,1739551832627,-589.2249975,0.0001,2]
[353092534,1739551832657,-385.91986734,0.0001,2]
[353092535,1739551832670,-4111.2273854,0.0001,2]
[353092536,1739551832682,-49844.99999998,0.0001,2]
[353092703,1739551838252,-2729.994096,0.0001,2]
[353092704,1739551838307,-570.075,0.0001,2]
[353092705,1739551838361,-4971.340227,0.0001,2]
[353092706,1739551838520,-8239.58100693,0.0001,2]
[353092707,1739551838531,-332.58896485,0.0001,2]
[353092708,1739551838543,-1678.16113468,0.0001,2]
[353092709,1739551838554,-7248.34453567,0.0001,2]
[353092872,1739551840417,-1000.0,0.0001,2]
[353092878,1739551840471,-1938.8340339,0.0001,2]
[353092880,1739551840483,-271.37002482,0.0001,2]
[353092891,1739551840580,-55299.999999,0.0001,2]
[353092926,1739551840920,-10488.91723394,0.0001,2]
[353092930,1739551840949,-25469.58281239,0.0001,2]
[353092940,1739551841018,-584.76430095,0.0001,2]
[353093165,1739551843358,-292.8706028,0.0001,2]
[353093167,1739551843371,-66531.487626,0.0001,2]
[353093169,1739551843382,-150885.056036,0.0001,2]
[353093172,1739551843396,-471.64641658,0.0001,2]
[353093176,1739551843427,-500.0,0.0001,2]
[353093188,1739551843537,-236942.17362435,0.0001,2]
[353093202,1739551846357,-2734.31704001,0.0001,2]
[353093203,1739551846412,-307.5976815,0.0001,2]
[353093204,1739551846626,-564.2,0.0001,2]
[353093211,1739551950135,423.7276,8.699e-05,2]
[353093212,1739551984993,155.0,8.699e-05,3]
[353093213,1739552002372,2493.58032826,0.00020806,60]
[353093214,1739552002653,2493.58032826,0.00020806,60]
[353093215,1739552002973,2493.58032826,0.00020806,60]
[353093216,1739552003269,2493.58032826,0.00020806,60]
[353093217,1739552044741,606.62221617,0.00020806,60]
[353093218,1739552045012,606.62221617,0.00020806,60]
[353093219,1739552045320,606.62221617,0.00020806,60]
[353093220,1739552045642,606.62221617,0.00020806,60]
[353093221,1739552069108,18873.72595626,9.993e-05,10]
[353093222,1739552074696,200.0,0.00020806,60]
[353093223,1739552075049,200.0,0.00020806,60]
[353093224,1739552082596,1088.55906057,0.00020806,60]
[353093225,1739552083001,1088.55906057,0.00020806,60]
[353093226,1739552083315,1088.55906057,0.00020806,60]
[353093227,1739552083629,1088.55906057,0.00020806,60]
[353093230,1739552162501,1163.86,8.43e-05,2]
[353093232,1739552168712,-240.3670478,9.993e-05,2]
[353093233,1739552168742,-200.0,9.996e-05,2]
[353093234,1739552168772,-2088.99,9.999e-05,2]
[353093235,1739552168797,-150.0,9.999e-05,2]
[353093236,1739552168825,-300.0,9.999e-05,2]
[353093237,1739552168852,-556.11736468,9.999e-05,2]
[353093238,1739552169223,-48264.52558752,0.0001,2]
[353093240,1739552181637,2099.41714035,0.00020806,64]
[353093242,1739552296533,500.0,0.00013698,7]
[353093252,1739553031646,-2912.80516562,8.836e-05,2]
[353093253,1739553031793,-1642.92563438,8.836e-05,2]
[353093254,1739553031803,-397.5599,8.836e-05,2]
[353093255,1739553031813,-150.0,9e-05,2]
[353093256,1739553031823,-150.0,9e-05,2]
[353093257,1739553031832,-311.91,9.232e-05,2]
[353093258,1739553031841,-23900.0,9.307e-05,2]
[353093259,1739553031851,-150.0,9.333e-05,2]
[353093260,1739553031860,-150.0,9.667e-05,2]
[353093261,1739553031872,-1000.0,9.691e-05,2]
[353093262,1739553031883,-500.0,9.7e-05,2]
[353093263,1739553031893,-2176.8,9.709e-05,2]
[353093264,1739553031903,-200.0,9.719e-05,2]
[353093266,1739553031912,-200.0,9.719e-05,2]
[353093267,1739553031922,-200.0,9.719e-05,2]
[353093269,1739553031932,-2992.003,9.8e-05,2]
[353093270,1739553031941,-154.359,9.8e-05,2]
[353093271,1739553031951,-181.12,9.828e-05,2]
[353093273,1739553031963,-500.0,9.973e-05,2]
[353093274,1739553031974,-500.0,9.973e-05,2]
[353093276,1739553031984,-500.0,9.973e-05,2]
[353093278,1739553031995,-150.0,9.991e-05,2]
[353093279,1739553032005,-3546.5014634,9.992e-05,2]
[353093281,1739553032015,-9107.3809667,9.992e-05,2]
[353093283,1739553032026,-2001.95,9.999e-05,2]
[353093285,1739553032036,-633479.90017961,0.0001,2]
[353093287,1739553032049,-11311.91161172,0.0001,2]
[353093426,1739553037488,-1227.89356338,0.0001,2]
[353093427,1739553037595,-1231.4827665,0.0001,2]
[353093428,1739553037607,-257.10194172,0.0001,2]
[353093429,1739553037620,-294.07264052,0.0001,2]
[353093430,1739553037631,-5156.47436411,0.0001,2]
[353093431,1739553037643,-24409.12864519,0.0001,2]
[353093432,1739553037656,-459.51082153,0.0001,2]
[353093434,1739553037702,-19595.2954817,0.0001,2]
[353093436,1739553042086,-3399878.51418387,0.0001,2]
[353093437,1739553042144,362.0454,8.119e-05,2]
[353093439,1739553042230,-73.22683208,0.0001,2]